[Event "*** SCC Grand Prix: Titled Tuesday Blitz"]
[Site "Chess.com"]
[Date "2020.09.29"]
[Round "6"]
[White "wonderfultime"]
[Black "Violord"]
[Result "1-0"]
[WhiteElo "2916"]
[BlackElo "2693"]
[TimeControl "180+1"]
[EndTime "11:06:25 PDT"]
[Termination "wonderfultime won by checkmate"]

1. d4 {[%clk 0:03:00.9]} 1... Nf6 {[%clk 0:02:58.7]} 2. Nf3 {[%clk 0:03:01.4]}
2... g6 {[%clk 0:02:58.7]} 3. Bg5 {[%clk 0:03:01.6]} 3... Bg7 {[%clk 0:02:58]}
4. Nbd2 {[%clk 0:03:02.2]} 4... d5 {[%clk 0:02:57.3]} 5. c3 {[%clk 0:03:02.5]}
5... O-O {[%clk 0:02:57.2]} 6. e3 {[%clk 0:03:03]} 6... c5 {[%clk 0:02:56.9]} 7.
Bd3 {[%clk 0:03:03.3]} 7... Nc6 {[%clk 0:02:55.9]} 8. O-O {[%clk 0:03:03.7]}
8... Qb6 {[%clk 0:02:52.3]} 9. Rb1 {[%clk 0:03:02.9]} 9... h6 {[%clk 0:02:39.2]}
10. Bh4 {[%clk 0:03:01.4]} 10... Re8 {[%clk 0:02:19.2]} 11. b4 {[%clk
0:02:49.3]} 11... c4 {[%clk 0:02:09.2]} 12. Bc2 {[%clk 0:02:49.4]} 12... Bf5
{[%clk 0:02:09.8]} 13. Bxf6 {[%clk 0:02:40]} 13... Bxc2 {[%clk 0:02:03.4]} 14.
Qxc2 {[%clk 0:02:40.9]} 14... Bxf6 {[%clk 0:02:03.6]} 15. e4 {[%clk 0:02:40.5]}
15... e6 {[%clk 0:02:03.7]} 16. a4 {[%clk 0:02:37.7]} 16... Bg7 {[%clk
0:02:03.1]} 17. Rfe1 {[%clk 0:02:36.6]} 17... Qc7 {[%clk 0:02:02.5]} 18. g3
{[%clk 0:02:34.9]} 18... Rad8 {[%clk 0:02:00.9]} 19. Kg2 {[%clk 0:02:33.6]}
19... Ne7 {[%clk 0:01:59.1]} 20. h4 {[%clk 0:02:30.3]} 20... dxe4 {[%clk
0:01:54.8]} 21. Qxe4 {[%clk 0:02:31.2]} 21... Nd5 {[%clk 0:01:54.3]} 22. Rbc1
{[%clk 0:02:30.3]} 22... b6 {[%clk 0:01:50.6]} 23. Ne5 {[%clk 0:02:21.2]} 23...
Bxe5 {[%clk 0:01:48.4]} 24. Qxe5 {[%clk 0:02:22.1]} 24... Qxe5 {[%clk
0:01:45.4]} 25. Rxe5 {[%clk 0:02:23]} 25... Rc8 {[%clk 0:01:43.3]} 26. b5 {[%clk
0:02:21.4]} 26... Kg7 {[%clk 0:01:42.2]} 27. Ree1 {[%clk 0:02:15.2]} 27... Red8
{[%clk 0:01:40.9]} 28. Nf3 {[%clk 0:02:14.6]} 28... a6 {[%clk 0:01:34.4]} 29.
Ne5 {[%clk 0:02:12.9]} 29... axb5 {[%clk 0:01:33.6]} 30. axb5 {[%clk 0:02:13.8]}
30... Rc7 {[%clk 0:01:32.1]} 31. h5 {[%clk 0:00:50.4]} 31... gxh5 {[%clk
0:01:31.1]} 32. Rh1 {[%clk 0:00:45]} 32... Nf6 {[%clk 0:01:17.5]} 33. Ra1 {[%clk
0:00:44.9]} 33... Rd5 {[%clk 0:01:17.5]} 34. Rhb1 {[%clk 0:00:41.1]} 34... Ne4
{[%clk 0:01:16.9]} 35. Ra3 {[%clk 0:00:41.2]} 35... f6 {[%clk 0:01:11.9]} 36.
Nc6 {[%clk 0:00:35.4]} 36... Nd6 {[%clk 0:01:10.1]} 37. Nd8 {[%clk 0:00:33.7]}
37... Re7 {[%clk 0:01:04.9]} 38. Nc6 {[%clk 0:00:31.8]} 38... Rd7 {[%clk
0:00:51.9]} 39. Ra6 {[%clk 0:00:19.5]} 39... Rxb5 {[%clk 0:00:47.6]} 40. Rc1
{[%clk 0:00:13.5]} 40... Rb3 {[%clk 0:00:41.1]} 41. Ra8 {[%clk 0:00:13.7]} 41...
Ne4 {[%clk 0:00:36.4]} 42. Re1 {[%clk 0:00:12.4]} 42... f5 {[%clk 0:00:34.7]}
43. Ne5 {[%clk 0:00:09.4]} 43... Re7 {[%clk 0:00:33.8]} 44. Nxc4 {[%clk
0:00:07.2]} 44... b5 {[%clk 0:00:29.7]} 45. Ne3 {[%clk 0:00:06.4]} 45... Rxc3
{[%clk 0:00:29]} 46. d5 {[%clk 0:00:07]} 46... Kf6 {[%clk 0:00:15.4]} 47. dxe6
{[%clk 0:00:07]} 47... Kxe6 {[%clk 0:00:14.6]} 48. Ra6+ {[%clk 0:00:07.2]} 48...
Kf7 {[%clk 0:00:10.6]} 49. Nxf5 {[%clk 0:00:06.5]} 49... Re5 {[%clk 0:00:10.6]}
50. Nd6+ {[%clk 0:00:04.9]} 50... Nxd6 {[%clk 0:00:07]} 51. Rxe5 {[%clk
0:00:05.8]} 51... Nc4 {[%clk 0:00:05.3]} 52. Rxb5 {[%clk 0:00:05.6]} 52... Rc2
{[%clk 0:00:05]} 53. Rb7+ {[%clk 0:00:06]} 53... Ke8 {[%clk 0:00:04.6]} 54. Ra8#
{[%clk 0:00:06.9]} 1-0

[Event "*** SCC Grand Prix: Titled Tuesday Blitz"]
[Site "Chess.com"]
[Date "2020.09.29"]
[Round "6"]
[White "ehrenfeld"]
[Black "ajgreen"]
[Result "0-1"]
[WhiteElo "2518"]
[BlackElo "2383"]
[TimeControl "180+1"]
[EndTime "11:06:25 PDT"]
[Termination "ajgreen won on time"]

1. e4 {[%clk 0:03:00.9]} 1... c5 {[%clk 0:02:59.4]} 2. d3 {[%clk 0:03:00.8]}
2... Nc6 {[%clk 0:02:57.6]} 3. f4 {[%clk 0:03:01]} 3... g6 {[%clk 0:02:57.2]} 4.
Nf3 {[%clk 0:03:01.1]} 4... Bg7 {[%clk 0:02:57.5]} 5. Be2 {[%clk 0:03:01.5]}
5... e6 {[%clk 0:02:56.1]} 6. O-O {[%clk 0:03:01.7]} 6... Nge7 {[%clk
0:02:56.5]} 7. c3 {[%clk 0:03:01.2]} 7... d6 {[%clk 0:02:56.2]} 8. Be3 {[%clk
0:03:00.6]} 8... b6 {[%clk 0:02:55]} 9. d4 {[%clk 0:02:59.4]} 9... cxd4 {[%clk
0:02:52.5]} 10. cxd4 {[%clk 0:02:58.9]} 10... d5 {[%clk 0:02:49.5]} 11. e5
{[%clk 0:02:58.6]} 11... O-O {[%clk 0:02:38.9]} 12. Nc3 {[%clk 0:02:58.6]} 12...
a6 {[%clk 0:02:37.1]} 13. Rc1 {[%clk 0:02:57]} 13... b5 {[%clk 0:02:36.5]} 14.
Bd3 {[%clk 0:02:56]} 14... Kh8 {[%clk 0:02:33.5]} 15. Qd2 {[%clk 0:02:42.5]}
15... Bd7 {[%clk 0:02:22]} 16. g4 {[%clk 0:02:33.1]} 16... f5 {[%clk 0:02:19.5]}
17. exf6 {[%clk 0:02:28.3]} 17... Bxf6 {[%clk 0:02:19.2]} 18. Ne5 {[%clk
0:02:26.8]} 18... Nxe5 {[%clk 0:02:15.9]} 19. fxe5 {[%clk 0:02:24.9]} 19... Bg7
{[%clk 0:02:14.4]} 20. Ne2 {[%clk 0:02:17]} 20... Nc6 {[%clk 0:02:11.4]} 21. Bg5
{[%clk 0:02:09.6]} 21... Qb6 {[%clk 0:02:05.3]} 22. Kg2 {[%clk 0:01:49.5]} 22...
Kg8 {[%clk 0:01:12.7]} 23. Bf6 {[%clk 0:01:43.2]} 23... Rf7 {[%clk 0:01:05.3]}
24. h4 {[%clk 0:01:39.6]} 24... Raf8 {[%clk 0:00:59.2]} 25. g5 {[%clk
0:01:34.2]} 25... Rb8 {[%clk 0:00:58.2]} 26. Qf4 {[%clk 0:01:26.6]} 26... Ne7
{[%clk 0:00:53.4]} 27. h5 {[%clk 0:01:15.7]} 27... Nf5 {[%clk 0:00:49.1]} 28.
Bxf5 {[%clk 0:01:12.8]} 28... exf5 {[%clk 0:00:43.7]} 29. Bxg7 {[%clk
0:01:08.5]} 29... Kxg7 {[%clk 0:00:38.4]} 30. h6+ {[%clk 0:01:08.3]} 30... Kg8
{[%clk 0:00:36.4]} 31. Rc5 {[%clk 0:01:06.5]} 31... Be6 {[%clk 0:00:35.2]} 32.
Rfc1 {[%clk 0:01:05.7]} 32... Re7 {[%clk 0:00:34.1]} 33. Qe3 {[%clk 0:01:02.3]}
33... Kf7 {[%clk 0:00:33.7]} 34. Nf4 {[%clk 0:01:01.9]} 34... Rd8 {[%clk
0:00:30.3]} 35. Rc6 {[%clk 0:01:01.6]} 35... Qa5 {[%clk 0:00:25]} 36. a3 {[%clk
0:00:55.5]} 36... b4 {[%clk 0:00:23.6]} 37. Qd2 {[%clk 0:00:50.8]} 37... Qb5
{[%clk 0:00:18.3]} 38. R1c5 {[%clk 0:00:43.9]} 38... Qa4 {[%clk 0:00:16.4]} 39.
axb4 {[%clk 0:00:30.1]} 39... Rb8 {[%clk 0:00:14]} 40. b5 {[%clk 0:00:16.2]}
40... Rxb5 {[%clk 0:00:12.5]} 41. Rxb5 {[%clk 0:00:14.8]} 41... Qxb5 {[%clk
0:00:10.1]} 42. Qc3 {[%clk 0:00:13]} 42... Bd7 {[%clk 0:00:08.2]} 43. Rc5 {[%clk
0:00:12.1]} 43... Qa4 {[%clk 0:00:08.2]} 44. Qd2 {[%clk 0:00:08]} 44... Be6
{[%clk 0:00:06.4]} 45. Qc2 {[%clk 0:00:07.8]} 45... Qb4 {[%clk 0:00:04.7]} 46.
Qc3 {[%clk 0:00:07.7]} 46... Qa4 {[%clk 0:00:04.5]} 47. Rc7 {[%clk 0:00:06.4]}
47... Qd1 {[%clk 0:00:03.6]} 48. Rxe7+ {[%clk 0:00:06.4]} 48... Kxe7 {[%clk
0:00:04.5]} 49. Qc7+ {[%clk 0:00:06.1]} 49... Bd7 {[%clk 0:00:03.7]} 50. Qd6+
{[%clk 0:00:06]} 50... Ke8 {[%clk 0:00:03.6]} 51. e6 {[%clk 0:00:03.2]} 51...
Qg4+ {[%clk 0:00:03.4]} 52. Kf2 {[%clk 0:00:03]} 52... Bb5 {[%clk 0:00:03.4]}
53. e7 {[%clk 0:00:01.7]} 53... Qh4+ {[%clk 0:00:02.8]} 0-1

[Event "*** SCC Grand Prix: Titled Tuesday Blitz"]
[Site "Chess.com"]
[Date "2020.09.29"]
[Round "6"]
[White "Guenplen"]
[Black "WIDBIFS"]
[Result "0-1"]
[WhiteElo "2867"]
[BlackElo "2662"]
[TimeControl "180+1"]
[EndTime "11:06:29 PDT"]
[Termination "WIDBIFS won on time"]

1. d4 {[%clk 0:03:00.9]} 1... Nf6 {[%clk 0:02:59.9]} 2. Bf4 {[%clk 0:03:00.4]}
2... g6 {[%clk 0:02:57.2]} 3. c3 {[%clk 0:02:58.9]} 3... Bg7 {[%clk 0:02:57.1]}
4. h3 {[%clk 0:02:59]} 4... O-O {[%clk 0:02:57.1]} 5. Nd2 {[%clk 0:02:59]} 5...
d6 {[%clk 0:02:57.1]} 6. Ngf3 {[%clk 0:02:54.9]} 6... c5 {[%clk 0:02:56.9]} 7.
dxc5 {[%clk 0:02:54.9]} 7... dxc5 {[%clk 0:02:57.8]} 8. e4 {[%clk 0:02:55.1]}
8... Nc6 {[%clk 0:02:55.3]} 9. Qc2 {[%clk 0:02:50.7]} 9... b6 {[%clk 0:02:54.3]}
10. Be2 {[%clk 0:02:49.2]} 10... Bb7 {[%clk 0:02:54.1]} 11. O-O {[%clk
0:02:49.1]} 11... Qc8 {[%clk 0:02:35.3]} 12. Rad1 {[%clk 0:02:40]} 12... Rd8
{[%clk 0:02:32.8]} 13. Bh2 {[%clk 0:02:21.6]} 13... h6 {[%clk 0:02:19.1]} 14.
Rfe1 {[%clk 0:02:17.5]} 14... Nd7 {[%clk 0:02:09.9]} 15. Nc4 {[%clk 0:02:15.2]}
15... Nf8 {[%clk 0:01:51.3]} 16. Ne3 {[%clk 0:02:08.4]} 16... Rxd1 {[%clk
0:01:36.2]} 17. Rxd1 {[%clk 0:02:09.3]} 17... Qe8 {[%clk 0:01:25.5]} 18. Nd5
{[%clk 0:02:08.8]} 18... Ne6 {[%clk 0:01:19.4]} 19. Bb5 {[%clk 0:02:03.6]} 19...
Rd8 {[%clk 0:01:15.3]} 20. Qe2 {[%clk 0:01:47.9]} 20... Kf8 {[%clk 0:01:01.5]}
21. Bg3 {[%clk 0:01:40.8]} 21... Qd7 {[%clk 0:00:56.5]} 22. Rd2 {[%clk
0:01:20.3]} 22... Qc8 {[%clk 0:00:55.4]} 23. Qd1 {[%clk 0:01:00.8]} 23... Ng5
{[%clk 0:00:39.5]} 24. Nxg5 {[%clk 0:00:53.8]} 24... hxg5 {[%clk 0:00:40.4]} 25.
Ne3 {[%clk 0:00:15.1]} 25... Rxd2 {[%clk 0:00:36]} 26. Qxd2 {[%clk 0:00:16]}
26... Ne5 {[%clk 0:00:29.5]} 27. f3 {[%clk 0:00:12.2]} 27... a6 {[%clk
0:00:29.2]} 28. Be2 {[%clk 0:00:10.2]} 28... b5 {[%clk 0:00:28.5]} 29. Ng4
{[%clk 0:00:10.1]} 29... Nxg4 {[%clk 0:00:27.5]} 30. hxg4 {[%clk 0:00:11]} 30...
Bh6 {[%clk 0:00:10]} 31. a4 {[%clk 0:00:08.5]} 31... c4 {[%clk 0:00:10.1]} 32.
axb5 {[%clk 0:00:08.1]} 32... axb5 {[%clk 0:00:11]} 33. Qd4 {[%clk 0:00:07.9]}
33... Bg7 {[%clk 0:00:11]} 34. Qb6 {[%clk 0:00:07.7]} 34... Bc6 {[%clk
0:00:05.1]} 35. Qc5 {[%clk 0:00:07.4]} 35... f6 {[%clk 0:00:02.8]} 36. Qb6
{[%clk 0:00:05]} 36... Bd7 {[%clk 0:00:02.9]} 37. Bc7 {[%clk 0:00:04.4]} 37...
Kf7 {[%clk 0:00:02.6]} 38. Kf2 {[%clk 0:00:04.2]} 38... e5 {[%clk 0:00:02.9]}
39. Bd1 {[%clk 0:00:04.3]} 39... Bf8 {[%clk 0:00:03.4]} 40. Kf1 {[%clk
0:00:04.3]} 40... Be7 {[%clk 0:00:03.9]} 41. Be2 {[%clk 0:00:04.4]} 41... Bf8
{[%clk 0:00:03.8]} 42. Bd1 {[%clk 0:00:04.6]} 42... Be7 {[%clk 0:00:04.4]} 43.
b3 {[%clk 0:00:05]} 43... Be6 {[%clk 0:00:04.6]} 44. b4 {[%clk 0:00:05.1]} 44...
Qd7 {[%clk 0:00:04.3]} 45. Be2 {[%clk 0:00:03.3]} 45... Qd2 {[%clk 0:00:04.7]}
46. Qa7 {[%clk 0:00:02.9]} 46... Qc1+ {[%clk 0:00:02.9]} 47. Kf2 {[%clk
0:00:02.9]} 47... Qxc3 {[%clk 0:00:03.2]} 48. Bb6 {[%clk 0:00:01.8]} 48... Qxb4
{[%clk 0:00:03.2]} 49. Kg3 {[%clk 0:00:02.2]} 49... Qd6 {[%clk 0:00:03.5]} 50.
Bf1 {[%clk 0:00:01.3]} 50... c3 {[%clk 0:00:04]} 51. Bc7 {[%clk 0:00:01.3]}
51... Qc6 {[%clk 0:00:03.9]} 52. Be2 {[%clk 0:00:01.2]} 52... c2 {[%clk
0:00:04.1]} 0-1

[Event "*** SCC Grand Prix: Titled Tuesday Blitz"]
[Site "Chess.com"]
[Date "2020.09.29"]
[Round "6"]
[White "UmarovSabir"]
[Black "Oscar-Luna"]
[Result "1-0"]
[WhiteElo "2370"]
[BlackElo "2150"]
[TimeControl "180+1"]
[EndTime "11:06:29 PDT"]
[Termination "UmarovSabir won by checkmate"]

1. e4 {[%clk 0:03:00.9]} 1... e6 {[%clk 0:02:59.9]} 2. d4 {[%clk 0:02:50]} 2...
d5 {[%clk 0:02:59.1]} 3. Nd2 {[%clk 0:02:49.5]} 3... Nc6 {[%clk 0:02:58.9]} 4.
Ngf3 {[%clk 0:02:43.7]} 4... Nf6 {[%clk 0:02:58.4]} 5. e5 {[%clk 0:02:43.2]}
5... Nd7 {[%clk 0:02:57.5]} 6. c3 {[%clk 0:02:36.6]} 6... f6 {[%clk 0:02:53.4]}
7. exf6 {[%clk 0:02:35.6]} 7... Qxf6 {[%clk 0:02:50.9]} 8. Bd3 {[%clk
0:02:35.2]} 8... Bd6 {[%clk 0:02:51.1]} 9. Nf1 {[%clk 0:02:21.6]} 9... e5 {[%clk
0:02:50.5]} 10. Bg5 {[%clk 0:02:17]} 10... Qf7 {[%clk 0:02:47.2]} 11. dxe5
{[%clk 0:02:14.8]} 11... Ndxe5 {[%clk 0:02:47.5]} 12. Nxe5 {[%clk 0:02:08.5]}
12... Nxe5 {[%clk 0:02:47.4]} 13. Ne3 {[%clk 0:01:51.9]} 13... O-O {[%clk
0:02:35.7]} 14. O-O {[%clk 0:01:46.8]} 14... c6 {[%clk 0:02:27.8]} 15. Bc2
{[%clk 0:01:35.8]} 15... Bd7 {[%clk 0:01:36.9]} 16. Bh4 {[%clk 0:01:24.1]} 16...
Rae8 {[%clk 0:01:30.5]} 17. Bg3 {[%clk 0:01:21.8]} 17... Qf6 {[%clk 0:01:10.9]}
18. b4 {[%clk 0:01:00]} 18... Nf7 {[%clk 0:00:49.2]} 19. Qd4 {[%clk 0:00:40.1]}
19... Qxd4 {[%clk 0:00:45.7]} 20. cxd4 {[%clk 0:00:40]} 20... Bxg3 {[%clk
0:00:31.2]} 21. hxg3 {[%clk 0:00:39.6]} 21... Nd6 {[%clk 0:00:29.1]} 22. a4
{[%clk 0:00:37.6]} 22... a6 {[%clk 0:00:29.1]} 23. Bb3 {[%clk 0:00:32.6]} 23...
Re4 {[%clk 0:00:19.9]} 24. Rad1 {[%clk 0:00:31.8]} 24... Rfe8 {[%clk 0:00:17.3]}
25. Rd2 {[%clk 0:00:25.2]} 25... Be6 {[%clk 0:00:16.9]} 26. Rfd1 {[%clk
0:00:25]} 26... Bf7 {[%clk 0:00:16.5]} 27. Bc2 {[%clk 0:00:24.6]} 27... R4e7
{[%clk 0:00:15.8]} 28. Bd3 {[%clk 0:00:22.8]} 28... g6 {[%clk 0:00:14.6]} 29.
Rb1 {[%clk 0:00:21.3]} 29... Ne4 {[%clk 0:00:14.5]} 30. Rc2 {[%clk 0:00:19]}
30... Nxf2 {[%clk 0:00:09.8]} 31. Kxf2 {[%clk 0:00:10.7]} 31... Rxe3 {[%clk
0:00:09.8]} 32. Bf1 {[%clk 0:00:09]} 32... Ra3 {[%clk 0:00:09]} 33. b5 {[%clk
0:00:07.7]} 33... Rxa4 {[%clk 0:00:06]} 34. bxc6 {[%clk 0:00:07.4]} 34... bxc6
{[%clk 0:00:06.1]} 35. Rxc6 {[%clk 0:00:07.9]} 35... Rxd4 {[%clk 0:00:05.7]} 36.
Rb7 {[%clk 0:00:07.6]} 36... Rd2+ {[%clk 0:00:05.7]} 37. Kg1 {[%clk 0:00:07.3]}
37... Be6 {[%clk 0:00:02.9]} 38. Rcc7 {[%clk 0:00:07]} 38... Bf5 {[%clk
0:00:03.3]} 39. Rg7+ {[%clk 0:00:06.5]} 39... Kh8 {[%clk 0:00:02.8]} 40. Rxh7+
{[%clk 0:00:06.8]} 40... Kg8 {[%clk 0:00:03.4]} 41. Rbg7+ {[%clk 0:00:06.7]}
41... Kf8 {[%clk 0:00:04]} 42. Ra7 {[%clk 0:00:03.4]} 42... Kg8 {[%clk
0:00:03.8]} 43. Rxa6 {[%clk 0:00:03]} 43... Re1 {[%clk 0:00:02.1]} 44. Raa7
{[%clk 0:00:02.2]} 44... Rxf1+ {[%clk 0:00:02]} 45. Kxf1 {[%clk 0:00:01.8]}
45... Rd1+ {[%clk 0:00:02.9]} 46. Ke2 {[%clk 0:00:01.8]} 46... Rc1 {[%clk
0:00:03.4]} 47. Ke3 {[%clk 0:00:02.1]} 47... Rc3+ {[%clk 0:00:03.5]} 48. Kd4
{[%clk 0:00:02.3]} 48... Rc4+ {[%clk 0:00:02.8]} 49. Ke5 {[%clk 0:00:03.1]}
49... Re4+ {[%clk 0:00:03.1]} 50. Kf6 {[%clk 0:00:03]} 50... Re8 {[%clk
0:00:03.4]} 51. Rhg7+ {[%clk 0:00:02.9]} 51... Kf8 {[%clk 0:00:03.8]} 52. Raf7#
{[%clk 0:00:02.3]} 1-0

[Event "*** SCC Grand Prix: Titled Tuesday Blitz"]
[Site "Chess.com"]
[Date "2020.09.29"]
[Round "6"]
[White "K_A_S_T_O_R"]
[Black "jefferyx"]
[Result "0-1"]
[WhiteElo "2711"]
[BlackElo "2950"]
[TimeControl "180+1"]
[EndTime "11:06:32 PDT"]
[Termination "jefferyx won by resignation"]

1. e4 {[%clk 0:03:00.9]} 1... e6 {[%clk 0:02:29.7]} 2. d4 {[%clk 0:02:58.9]}
2... d5 {[%clk 0:02:30.6]} 3. Nc3 {[%clk 0:02:58.8]} 3... Bb4 {[%clk 0:02:31.3]}
4. e5 {[%clk 0:02:58.5]} 4... b6 {[%clk 0:02:31.9]} 5. Bd2 {[%clk 0:02:56.7]}
5... Ne7 {[%clk 0:02:30.9]} 6. Nf3 {[%clk 0:02:50.1]} 6... O-O {[%clk
0:02:29.3]} 7. Bd3 {[%clk 0:02:43.5]} 7... Bxc3 {[%clk 0:02:29.3]} 8. Bxc3
{[%clk 0:02:36.1]} 8... h6 {[%clk 0:02:25.2]} 9. O-O {[%clk 0:02:29.9]} 9... c5
{[%clk 0:02:25.5]} 10. Bd2 {[%clk 0:02:27.2]} 10... Ba6 {[%clk 0:02:25]} 11.
Bxa6 {[%clk 0:02:25.9]} 11... Nxa6 {[%clk 0:02:25.9]} 12. c3 {[%clk 0:02:26.1]}
12... Qd7 {[%clk 0:02:25.8]} 13. Qe2 {[%clk 0:02:25.5]} 13... Nc7 {[%clk
0:02:25.8]} 14. a4 {[%clk 0:02:23.5]} 14... Rfc8 {[%clk 0:02:20.9]} 15. b4
{[%clk 0:02:22.8]} 15... cxb4 {[%clk 0:02:16.2]} 16. cxb4 {[%clk 0:02:21.3]}
16... b5 {[%clk 0:02:17.1]} 17. Rfc1 {[%clk 0:02:10.1]} 17... bxa4 {[%clk
0:02:02.3]} 18. Rc5 {[%clk 0:02:08.1]} 18... Rab8 {[%clk 0:02:02.9]} 19. Qd1
{[%clk 0:02:02.1]} 19... Na6 {[%clk 0:01:44.8]} 20. Rxc8+ {[%clk 0:01:57.6]}
20... Nxc8 {[%clk 0:01:45.7]} 21. Qxa4 {[%clk 0:01:53.7]} 21... Qxa4 {[%clk
0:01:46]} 22. Rxa4 {[%clk 0:01:53.5]} 22... Nc7 {[%clk 0:01:46.9]} 23. Kf1
{[%clk 0:01:45.7]} 23... Rb7 {[%clk 0:01:45.2]} 24. Ke2 {[%clk 0:01:42.9]} 24...
Nb6 {[%clk 0:01:45.6]} 25. Ra2 {[%clk 0:01:41.4]} 25... Nc4 {[%clk 0:01:45.8]}
26. Be1 {[%clk 0:01:40.1]} 26... Kf8 {[%clk 0:01:44.5]} 27. Kd3 {[%clk
0:01:39.9]} 27... Ke8 {[%clk 0:01:44.8]} 28. Bc3 {[%clk 0:01:38.2]} 28... Nb5
{[%clk 0:01:44.2]} 29. Ne1 {[%clk 0:01:37.9]} 29... Rc7 {[%clk 0:01:38.9]} 30.
Ba1 {[%clk 0:01:32.3]} 30... Kd7 {[%clk 0:01:25.8]} 31. Ke2 {[%clk 0:01:23.1]}
31... Nca3 {[%clk 0:01:21.3]} 32. Nd3 {[%clk 0:01:23]} 32... Rc2+ {[%clk
0:01:20.7]} 33. Rxc2 {[%clk 0:01:19]} 33... Nxc2 {[%clk 0:01:21.6]} 34. Nc5+
{[%clk 0:01:14.5]} 34... Kc6 {[%clk 0:01:21.6]} 35. Bb2 {[%clk 0:01:14.9]} 35...
Nxb4 {[%clk 0:01:15.7]} 36. Kd2 {[%clk 0:01:13.1]} 36... Kc7 {[%clk 0:01:14.3]}
37. Bc3 {[%clk 0:01:08.6]} 37... Nc6 {[%clk 0:01:13.6]} 38. Kd3 {[%clk
0:01:07.8]} 38... Nxc3 {[%clk 0:01:13.6]} 39. Kxc3 {[%clk 0:01:07.8]} 39... Kb6
{[%clk 0:01:12.6]} 40. f4 {[%clk 0:01:05.6]} 40... a5 {[%clk 0:01:11.3]} 41. g4
{[%clk 0:01:01.3]} 41... Kb5 {[%clk 0:01:10.9]} 42. Nb7 {[%clk 0:00:58]} 42...
Kb6 {[%clk 0:00:45.9]} 43. Nd6 {[%clk 0:00:58.2]} 43... Nd8 {[%clk 0:00:46.3]}
44. Ne8 {[%clk 0:00:55.5]} 44... g6 {[%clk 0:00:46.5]} 45. Nd6 {[%clk
0:00:53.9]} 45... Kc6 {[%clk 0:00:41.2]} 46. Ne8 {[%clk 0:00:47.4]} 46... Kd7
{[%clk 0:00:21.4]} 47. Nf6+ {[%clk 0:00:46]} 47... Kc6 {[%clk 0:00:19.2]} 48.
Ne8 {[%clk 0:00:45.7]} 48... Nb7 {[%clk 0:00:19.1]} 49. h4 {[%clk 0:00:42.5]}
49... Kb5 {[%clk 0:00:14.7]} 50. Nf6 {[%clk 0:00:21.3]} 50... a4 {[%clk
0:00:14.3]} 51. Ng8 {[%clk 0:00:20.7]} 51... Na5 {[%clk 0:00:13.3]} 52. Nxh6
{[%clk 0:00:19.9]} 52... a3 {[%clk 0:00:13.5]} 53. Nxf7 {[%clk 0:00:19.7]} 53...
Ka4 {[%clk 0:00:13.3]} 54. Nd6 {[%clk 0:00:17.9]} 54... Nb3 {[%clk 0:00:11.1]}
55. f5 {[%clk 0:00:12.1]} 55... a2 {[%clk 0:00:10.8]} 56. fxe6 {[%clk
0:00:11.7]} 56... a1=Q+ {[%clk 0:00:11.7]} 0-1

[Event "*** SCC Grand Prix: Titled Tuesday Blitz"]
[Site "Chess.com"]
[Date "2020.09.29"]
[Round "6"]
[White "ExcitingTrap"]
[Black "Vamostodorecto"]
[Result "1/2-1/2"]
[WhiteElo "2292"]
[BlackElo "2387"]
[TimeControl "180+1"]
[EndTime "11:06:35 PDT"]
[Termination "Game drawn by repetition"]

1. e4 {[%clk 0:03:00.9]} 1... e5 {[%clk 0:02:58.8]} 2. Nf3 {[%clk 0:03:00.4]}
2... Nc6 {[%clk 0:02:59.2]} 3. Bc4 {[%clk 0:03:00.5]} 3... Bc5 {[%clk
0:02:57.2]} 4. c3 {[%clk 0:03:00]} 4... d6 {[%clk 0:02:54.4]} 5. d4 {[%clk
0:02:54.6]} 5... exd4 {[%clk 0:02:55.3]} 6. cxd4 {[%clk 0:02:54.6]} 6... Bb6
{[%clk 0:02:56.2]} 7. O-O {[%clk 0:02:51.2]} 7... Bg4 {[%clk 0:02:51.5]} 8. Be3
{[%clk 0:02:35.1]} 8... Nf6 {[%clk 0:02:48.3]} 9. Nc3 {[%clk 0:02:10.7]} 9...
Bxf3 {[%clk 0:02:44.8]} 10. gxf3 {[%clk 0:02:06.6]} 10... Qd7 {[%clk 0:02:44.4]}
11. Kh1 {[%clk 0:02:01.8]} 11... Qh3 {[%clk 0:02:42.9]} 12. Rg1 {[%clk
0:02:00.8]} 12... O-O {[%clk 0:02:25.9]} 13. Rg3 {[%clk 0:01:58.3]} 13... Qh5
{[%clk 0:02:20.9]} 14. Ne2 {[%clk 0:01:45.7]} 14... d5 {[%clk 0:02:05]} 15. Nf4
{[%clk 0:01:39.6]} 15... Qh4 {[%clk 0:01:58.1]} 16. Rh3 {[%clk 0:01:36.8]} 16...
Qxh3 {[%clk 0:01:47.5]} 17. Nxh3 {[%clk 0:01:36.3]} 17... dxc4 {[%clk
0:01:48.4]} 18. Nf4 {[%clk 0:01:26.2]} 18... Nxd4 {[%clk 0:01:35.7]} 19. Bxd4
{[%clk 0:01:01.1]} 19... Rad8 {[%clk 0:01:35.9]} 20. Qc2 {[%clk 0:00:58.3]}
20... Rxd4 {[%clk 0:01:32.6]} 21. Rg1 {[%clk 0:00:57]} 21... Rfd8 {[%clk
0:01:27.3]} 22. Nh3 {[%clk 0:00:36.6]} 22... c6 {[%clk 0:01:22.9]} 23. Qc1
{[%clk 0:00:32.3]} 23... g6 {[%clk 0:00:53.4]} 24. Qg5 {[%clk 0:00:26.8]} 24...
Kg7 {[%clk 0:00:51.3]} 25. e5 {[%clk 0:00:20.7]} 25... Nd5 {[%clk 0:00:48]} 26.
f4 {[%clk 0:00:17.2]} 26... h6 {[%clk 0:00:38.6]} 27. Qh4 {[%clk 0:00:14.5]}
27... Re8 {[%clk 0:00:34.9]} 28. Rg3 {[%clk 0:00:10.7]} 28... Rxe5 {[%clk
0:00:33.5]} 29. Rg4 {[%clk 0:00:07]} 29... Rf5 {[%clk 0:00:32.9]} 30. Qg3 {[%clk
0:00:06.3]} 30... Bc7 {[%clk 0:00:30.7]} 31. Kg2 {[%clk 0:00:04.2]} 31... Nxf4+
{[%clk 0:00:28.7]} 32. Nxf4 {[%clk 0:00:04.3]} 32... Rdxf4 {[%clk 0:00:28.9]}
33. Qc3+ {[%clk 0:00:04.3]} 33... Kg8 {[%clk 0:00:26.2]} 34. Rxf4 {[%clk
0:00:04.6]} 34... Rxf4 {[%clk 0:00:26.9]} 35. Qe3 {[%clk 0:00:04.7]} 35... Kg7
{[%clk 0:00:20.5]} 36. Qxa7 {[%clk 0:00:04.4]} 36... Rg4+ {[%clk 0:00:19.2]} 37.
Kf1 {[%clk 0:00:04.7]} 37... Bxh2 {[%clk 0:00:16.1]} 38. Qxb7 {[%clk 0:00:05.1]}
38... h5 {[%clk 0:00:15.1]} 39. Qxc6 {[%clk 0:00:04.5]} 39... Be5 {[%clk
0:00:14]} 40. Qd5 {[%clk 0:00:04.7]} 40... Bxb2 {[%clk 0:00:13.1]} 41. a4 {[%clk
0:00:03.8]} 41... c3 {[%clk 0:00:13.2]} 42. Qd3 {[%clk 0:00:03.9]} 42... Rxa4
{[%clk 0:00:10.6]} 43. Kg2 {[%clk 0:00:02.2]} 43... Rg4+ {[%clk 0:00:10.1]} 44.
Kf1 {[%clk 0:00:02.2]} 44... h4 {[%clk 0:00:09.6]} 45. Qc2 {[%clk 0:00:01.1]}
45... h3 {[%clk 0:00:08.5]} 46. Ke2 {[%clk 0:00:02]} 46... h2 {[%clk 0:00:08]}
47. Qd1 {[%clk 0:00:02]} 47... Rg1 {[%clk 0:00:07.9]} 48. Qd4+ {[%clk
0:00:02.6]} 48... Kg8 {[%clk 0:00:06.2]} 49. Qd8+ {[%clk 0:00:02.9]} 49... Kg7
{[%clk 0:00:06.3]} 50. Qd4+ {[%clk 0:00:03.2]} 50... f6 {[%clk 0:00:06.4]} 51.
Qd7+ {[%clk 0:00:03.4]} 51... Kh6 {[%clk 0:00:05.8]} 52. Qh3+ {[%clk 0:00:03.4]}
52... Kg7 {[%clk 0:00:06]} 53. Qd7+ {[%clk 0:00:03.7]} 53... Kf8 {[%clk
0:00:05]} 54. Qd8+ {[%clk 0:00:04]} 54... Kf7 {[%clk 0:00:04.1]} 55. Qd7+ {[%clk
0:00:04.6]} 55... Kg8 {[%clk 0:00:04]} 56. Qd8+ {[%clk 0:00:04.6]} 56... Kg7
{[%clk 0:00:04.1]} 57. Qd7+ {[%clk 0:00:05]} 1/2-1/2